fUST/lending_fUST_20250116
["ID","MTS","AMOUNT","RATE_DAILY","PERIOD"]
[349071724,1736961042496,-500.0,0.00019178,2]
[349071726,1736961042505,-500.0,0.00019178,2]
[349071728,1736961042515,-500.0,0.00019178,2]
[349071731,1736961042525,-500.0,0.00019178,2]
[349071734,1736961042537,-500.0,0.00019178,2]
[349071739,1736961042547,-500.0,0.00019178,2]
[349071743,1736961042557,-500.0,0.00019178,2]
[349071745,1736961042567,-500.0,0.00019178,2]
[349071749,1736961042578,-500.0,0.00019178,2]
[349071752,1736961042588,-500.0,0.00019178,2]
[349071755,1736961042597,-539.31,0.00019178,2]
[349071758,1736961042606,-539.31,0.00019178,2]
[349071761,1736961042615,-539.31,0.00019178,2]
[349071764,1736961042624,-539.31,0.00019178,2]
[349071767,1736961042634,-539.31,0.00019178,2]
[349071770,1736961042643,-539.31,0.00019178,2]
[349071772,1736961042652,-539.31,0.00019178,2]
[349071774,1736961042662,-539.31,0.00019313,3]
[349071776,1736961042672,-180.72005388,0.00019314,2]
[349071778,1736961042681,-392.55754525,0.00019314,2]
[349071780,1736961042691,-500.0,0.00019314,2]
[349071782,1736961042701,-500.0,0.00019314,3]
[349071784,1736961042711,-500.0,0.00019314,3]
[349071786,1736961042721,-500.0,0.00019314,3]
[349071788,1736961042731,-500.0,0.00019314,3]
[349071790,1736961042740,-500.0,0.00019314,3]
[349071792,1736961042750,-3659.83,0.00019314,3]
[349071794,1736961042760,-500.0,0.00019314,3]
[349071796,1736961042770,-500.0,0.00019314,3]
[349071798,1736961042782,-500.00762011,0.00019315,2]
[349071800,1736961042792,-500.0,0.00019315,3]
[349071802,1736961042803,-249.81437243,0.00019315,3]
[349071804,1736961042813,-500.0,0.00019315,3]
[349071806,1736961042823,-500.0,0.00019315,3]
[349071808,1736961042832,-500.0,0.00019315,3]
[349071810,1736961042842,-500.0,0.00019315,3]
[349071812,1736961042851,-500.0,0.00019315,3]
[349071814,1736961042861,-500.0,0.00019315,3]
[349071816,1736961042871,-500.0,0.00019315,3]
[349071818,1736961042881,-500.0,0.00019315,3]
[349071820,1736961042891,-500.0,0.00019315,3]
[349071822,1736961042901,-500.0,0.00019315,3]
[349071824,1736961042911,-500.0,0.00019315,3]
[349071826,1736961042921,-500.0,0.00019315,3]
[349071828,1736961042931,-500.0,0.00019315,3]
[349071830,1736961042940,-500.0,0.00019315,3]
[349071832,1736961042950,-500.0,0.00019315,3]
[349071834,1736961042959,-500.0,0.00019315,3]
[349071836,1736961042969,-500.0,0.00019315,3]
[349071838,1736961042979,-581.85462697,0.00019315,3]
[349071840,1736961042994,-500.0,0.00019315,3]
[349071842,1736961043007,-500.0,0.00019315,3]
[349071844,1736961043016,-500.0,0.00019315,3]
[349071846,1736961043026,-500.0,0.00019315,3]
[349071848,1736961043036,-500.0,0.00019315,3]
[349071850,1736961043045,-500.0,0.00019315,3]
[349071852,1736961043055,-500.0,0.00019315,3]
[349071854,1736961043065,-500.0,0.00019315,3]
[349071856,1736961043074,-501.03166114,0.00019315,3]
[349071859,1736961043085,-500.0,0.00019315,3]
[349071861,1736961043095,-500.0,0.00019315,3]
[349071863,1736961043104,-500.0,0.00019315,3]
[349071865,1736961043113,-500.0,0.00019315,3]
[349071867,1736961043123,-500.0,0.00019315,3]
[349071869,1736961043132,-500.0,0.00019315,3]
[349071871,1736961043141,-500.0,0.00019315,3]
[349071873,1736961043151,-500.0,0.00019315,3]
[349071875,1736961043162,-500.0,0.00019315,3]
[349071877,1736961043171,-500.0,0.00019315,3]
[349071879,1736961043181,-500.0,0.00019315,3]
[349071881,1736961043191,-500.0,0.00019315,3]
[349071883,1736961043201,-500.0,0.00019315,3]
[349071885,1736961043210,-500.0,0.00019315,3]
[349071887,1736961043220,-500.0,0.00019315,3]
[349071889,1736961043229,-500.0,0.00019315,3]
[349071891,1736961043239,-500.0,0.00019315,3]
[349071893,1736961043249,-500.0,0.00019315,3]
[349071895,1736961043261,-500.0,0.00019315,3]
[349071897,1736961043271,-500.0,0.00019315,3]
[349071899,1736961043282,-500.0,0.00019315,3]
[349071901,1736961043292,-159.76895121,0.00019315,3]
[349071903,1736961043302,-500.0,0.00019315,3]
[349071905,1736961043311,-500.0,0.00019315,3]
[349071907,1736961043321,-500.0,0.00019315,3]
[349071909,1736961043333,-442.15452114,0.00019315,3]
[349071911,1736961043342,-500.0,0.00019315,3]
[349071913,1736961043352,-500.0,0.00019315,3]
[349071915,1736961043362,-635.39474432,0.00019315,3]
[349071917,1736961043372,-500.0,0.00019315,3]
[349071919,1736961043381,-6783.72,0.00019315,3]
[349071921,1736961043391,-500.0,0.00019315,3]
[349071923,1736961043401,-500.0,0.00019315,3]
[349071925,1736961043410,-500.0,0.00019315,3]
[349071927,1736961043421,-500.0,0.00019315,3]
[349071929,1736961043430,-500.0,0.00019315,3]
[349071931,1736961043439,-500.0,0.00019315,3]
[349071933,1736961043449,-500.0,0.00019315,3]
[349071935,1736961043459,-500.0,0.00019315,3]
[349071937,1736961043468,-500.0,0.00019315,3]
[349071939,1736961043477,-500.0,0.00019315,3]
[349071941,1736961043487,-500.0,0.00019315,3]
[349071943,1736961043497,-500.0,0.00019315,3]
[349071945,1736961043507,-500.0,0.00019315,3]
[349071947,1736961043516,-500.0,0.00019315,3]
[349071949,1736961043526,-500.0,0.00019315,3]
[349071952,1736961043536,-500.0,0.00019315,3]
[349071954,1736961043546,-500.0,0.00019315,3]
[349071956,1736961043556,-789.48,0.00019315,3]
[349071958,1736961043566,-1028.5,0.00019315,3]
[349071960,1736961043576,-500.0,0.00019315,3]
[349071962,1736961043586,-500.0,0.00019315,3]
[349071964,1736961043596,-1000.0,0.00019315,7]
[349071966,1736961043606,-580.03,0.00019315,3]
[349071968,1736961043616,-503.98,0.00019315,3]
[349071970,1736961043625,-500.0,0.00019315,3]
[349071972,1736961043635,-500.0,0.00019315,3]
[349071974,1736961043644,-599.21,0.00019315,3]
[349071976,1736961043655,-500.0,0.00019315,3]
[349071978,1736961043664,-500.0,0.00019315,3]
[349071980,1736961043675,-500.0,0.00019315,3]
[349071982,1736961043684,-500.0,0.00019315,3]
[349071984,1736961043694,-500.0,0.00019315,3]
[349071986,1736961043703,-500.0,0.00019315,3]
[349071988,1736961043713,-500.0,0.00019315,3]
[349071990,1736961043723,-500.0,0.00019315,3]
[349071992,1736961043732,-500.0,0.00019315,3]
[349071994,1736961043742,-500.0,0.00019315,3]
[349071996,1736961043751,-500.0,0.00019315,3]
[349071998,1736961043762,-500.0,0.00019315,3]
[349072000,1736961043772,-500.0,0.00019315,3]
[349072002,1736961043782,-500.0,0.00019315,3]
[349072004,1736961043793,-500.0,0.00019315,3]
[349072006,1736961043803,-500.0,0.00019315,3]
[349072008,1736961043813,-11998.11,0.00019315,3]
[349072010,1736961043822,-500.0,0.00019315,3]
[349072012,1736961043833,-1176.13,0.00019315,3]
[349072014,1736961043842,-500.0,0.00019315,3]
[349072016,1736961043852,-500.0,0.00019315,3]
[349072018,1736961043862,-338.30445383,0.00019315,3]
[349072020,1736961043872,-509.96,0.00019315,2]
[349072022,1736961043881,-500.0,0.00019315,3]
[349072024,1736961043891,-2098.31,0.00019315,3]
[349072026,1736961043900,-500.0,0.00019315,3]
[349072028,1736961043910,-500.0,0.00019315,3]
[349072030,1736961043920,-500.0,0.00019315,3]
[349072032,1736961043930,-500.0,0.00019315,3]
[349072034,1736961043940,-500.0,0.00019315,3]
[349072036,1736961043949,-551.5,0.00019315,3]
[349072038,1736961043959,-500.0,0.00019315,3]
[349072040,1736961043968,-500.0,0.00019315,3]
[349072042,1736961043977,-500.0,0.00019315,3]
[349072044,1736961043986,-527.56,0.00019315,3]
[349072046,1736961043996,-500.0,0.00019315,3]
[349072057,1736961044088,-500.0,0.00019315,3]
[349072059,1736961044099,-500.0,0.00019315,3]
[349072061,1736961044108,-500.0,0.00019315,3]
[349072063,1736961044118,-500.0,0.00019315,3]
[349072065,1736961044127,-1044.28,0.00019315,3]
[349072067,1736961044137,-500.0,0.00019315,3]
[349072069,1736961044146,-500.0,0.00019315,3]
[349072071,1736961044156,-1687.9,0.00019315,3]
[349072073,1736961044166,-500.0,0.00019315,3]
[349072075,1736961044176,-500.0,0.00019315,3]
[349072076,1736961044185,-428.02243035,0.00019315,3]
[349072077,1736961044200,-71.97756965,0.00019315,3]
[349072078,1736961044209,-500.0,0.00019315,3]
[349072079,1736961044219,-500.0,0.00019315,3]
[349072080,1736961044228,-400.91286036,0.00019315,3]
[349072081,1736961044237,-500.0,0.00019315,3]
[349072082,1736961044247,-500.0,0.00019315,3]
[349072083,1736961044257,-500.0,0.00019315,3]
[349072084,1736961044266,-500.0,0.00019315,3]
[349072085,1736961044275,-500.0,0.00019315,3]
[349072086,1736961044285,-500.0,0.00019315,3]
[349072087,1736961044294,-500.0,0.00019315,3]
[349072088,1736961044303,-887.32110818,0.00019318,2]
[349072089,1736961044313,-504.73076203,0.00019373,2]
[349072090,1736961044323,-500.0,0.00019373,2]
[349072091,1736961044336,-500.0,0.00019373,2]
[349072092,1736961044345,-500.0,0.00019373,2]
[349072093,1736961044354,-500.0,0.00019373,2]
[349072095,1736961044364,-500.0,0.00019373,2]
[349072096,1736961044374,-500.0,0.0001945,3]
[349072098,1736961044384,-500.0,0.00019451,3]
[349072100,1736961044394,-500.0,0.00019451,3]
[349072102,1736961044404,-500.0,0.00019451,3]
[349072104,1736961044414,-3659.83,0.00019451,3]
[349072106,1736961044423,-511.94045943,0.00019451,3]
[349072108,1736961044433,-500.0,0.00019452,3]
[349072110,1736961044445,-500.0,0.00019452,3]
[349072112,1736961044454,-500.0,0.00019452,3]
[349072114,1736961044463,-500.0,0.00019452,3]
[349072116,1736961044473,-500.0,0.00019452,3]
[349072118,1736961044482,-500.0,0.00019452,3]
[349072120,1736961044492,-500.0,0.00019452,3]
[349072122,1736961044502,-500.0,0.00019452,3]
[349072124,1736961044511,-500.0,0.00019452,3]
[349072126,1736961044521,-500.0,0.00019452,3]
[349072128,1736961044531,-500.0,0.00019452,3]
[349072130,1736961044541,-500.0,0.00019452,3]
[349072132,1736961044550,-500.0,0.00019452,3]
[349072134,1736961044560,-500.0,0.00019452,3]
[349072136,1736961044569,-500.0,0.00019452,3]
[349072138,1736961044578,-500.0,0.00019452,3]
[349072140,1736961044587,-500.0,0.00019452,3]
[349072142,1736961044597,-500.0,0.00019452,3]
[349072144,1736961044606,-500.0,0.00019452,3]
[349072146,1736961044616,-500.0,0.00019452,3]
[349072148,1736961044626,-500.0,0.00019452,3]
[349072150,1736961044636,-500.0,0.00019452,3]
[349072152,1736961044646,-500.0,0.00019452,3]
[349072154,1736961044656,-500.0,0.00019452,3]
[349072156,1736961044665,-500.0,0.00019452,3]
[349072158,1736961044674,-500.0,0.00019452,3]
[349072160,1736961044683,-500.0,0.00019452,3]
[349072162,1736961044693,-500.0,0.00019452,3]
[349072164,1736961044702,-500.0,0.00019452,3]
[349072166,1736961044711,-500.0,0.00019452,3]
[349072168,1736961044722,-500.0,0.00019452,3]
[349072170,1736961044731,-500.0,0.00019452,3]
[349072172,1736961044742,-500.0,0.00019452,3]
[349072174,1736961044751,-500.0,0.00019452,3]
[349072176,1736961044761,-500.0,0.00019452,3]
[349072178,1736961044771,-500.0,0.00019452,3]
[349072180,1736961044781,-224.71269068,0.00019452,3]
[349072188,1736961044849,-500.0,0.00019178,2]
[349072190,1736961044859,-539.31,0.00019314,3]
[349072192,1736961044868,-539.31,0.00019314,3]
[349072194,1736961044878,-539.31,0.00019314,3]
[349072196,1736961044888,-539.31,0.00019314,3]
[349072198,1736961044903,-539.31,0.0001945,3]
[349072199,1736961044913,-275.28730932,0.00019452,3]
[349072201,1736961044924,-5030.61611278,0.00019452,3]
[349072204,1736961044936,-1753.10388722,0.00019452,3]
[349072206,1736961044946,-500.0,0.00019452,3]
[349072208,1736961044955,-500.0,0.00019452,3]
[349072210,1736961044965,-58.49611278,0.00019452,3]
[349072212,1736961044976,-441.50388722,0.00019452,3]
[349072214,1736961044986,-500.0,0.00019452,3]
[349072216,1736961044996,-500.0,0.00019452,3]
[349072218,1736961045006,-257.80831495,0.00019452,3]
[349072220,1736961045018,-242.19168505,0.00019452,3]
[349072222,1736961045028,-500.0,0.00019452,3]
[349072224,1736961045039,-500.0,0.00019452,3]
[349072226,1736961045048,-500.0,0.00019452,3]
[349072228,1736961045057,-500.0,0.00019452,3]
[349072230,1736961045067,-500.0,0.00019452,3]
[349072232,1736961045078,-21.99336601,0.00019452,3]
[349072234,1736961045090,-478.00663399,0.00019452,3]
[349072236,1736961045099,-500.0,0.00019452,3]
[349072238,1736961045109,-490.33,0.00019452,3]
[349072240,1736961045119,-500.0,0.00019452,3]
[349072242,1736961045129,-381.051102,0.00019452,3]
[349072244,1736961045139,-789.48,0.00019452,3]
[349072246,1736961045147,-1028.5,0.00019452,3]
[349072248,1736961045157,-500.0,0.00019452,3]
[349072250,1736961045166,-500.0,0.00019452,3]
[349072252,1736961045175,-580.03,0.00019452,3]
[349072254,1736961045185,-503.98,0.00019452,3]
[349072256,1736961045194,-416.72791476,0.00019452,3]
[349072258,1736961045204,-500.0,0.00019452,3]
[349072260,1736961045214,-599.21,0.00019452,3]
[349072262,1736961045224,-500.0,0.00019452,3]
[349072264,1736961045233,-500.0,0.00019452,3]
[349072266,1736961045245,-500.0,0.00019452,3]
[349072268,1736961045255,-500.0,0.00019452,3]
[349072270,1736961045264,-500.0,0.00019452,3]
[349072272,1736961045273,-500.0,0.00019452,3]
[349072274,1736961045284,-500.0,0.00019452,3]
[349072276,1736961045293,-582.08,0.00019452,3]
[349072278,1736961045303,-500.0,0.00019452,3]
[349072280,1736961045313,-500.0,0.00019452,3]
[349072283,1736961045324,-648.16,0.00019452,3]
[349072286,1736961045338,-500.0,0.00019452,3]
[349072289,1736961045348,-500.0,0.00019452,3]
[349072291,1736961045358,-11998.11,0.00019452,3]
[349072294,1736961045369,-500.0,0.00019452,3]
[349072297,1736961045378,-1176.13,0.00019452,3]
[349072299,1736961045388,-500.0,0.00019452,3]
[349072301,1736961045398,-509.96,0.00019452,2]
[349072303,1736961045410,-500.0,0.00019452,3]
[349072305,1736961045419,-2098.31,0.00019452,3]
[349072307,1736961045430,-500.0,0.00019452,3]
[349072309,1736961045439,-500.0,0.00019452,3]
[349072311,1736961045449,-500.0,0.00019452,3]
[349072313,1736961045458,-500.0,0.00019452,3]
[349072315,1736961045467,-551.5,0.00019452,3]
[349072317,1736961045477,-567.13,0.00019452,3]
[349072319,1736961045486,-500.0,0.00019452,3]
[349072321,1736961045497,-527.56,0.00019452,3]
[349072323,1736961045506,-500.0,0.00019452,3]
[349072325,1736961045517,-500.0,0.00019452,3]
[349072327,1736961045527,-500.0,0.00019452,3]
[349072329,1736961045538,-500.0,0.00019452,3]
[349072331,1736961045548,-1044.28,0.00019452,3]
[349072333,1736961045558,-500.0,0.00019452,3]
[349072335,1736961045569,-1687.9,0.00019452,3]
[349072337,1736961045578,-379.02845959,0.00019452,3]
[349072339,1736961045588,-500.0,0.00019452,3]
[349072341,1736961045597,-500.0,0.00019452,3]
[349072343,1736961045607,-500.0,0.00019452,3]
[349072345,1736961045616,-500.0,0.00019452,3]
[349072347,1736961045629,-500.0,0.00019452,3]
[349072349,1736961045639,-581.59,0.00019452,3]
[349072351,1736961045648,-500.0,0.00019452,3]
[349072353,1736961045658,-500.0,0.00019452,3]
[349072355,1736961045667,-500.0,0.00019452,3]
[349072357,1736961045677,-887.32110818,0.00019557,2]
[349072359,1736961045687,-500.0,0.00019573,2]
[349072361,1736961045696,-500.0,0.00019588,3]
[349072363,1736961045706,-3659.83,0.00019588,3]
[349072365,1736961045716,-500.0,0.00019589,3]
[349072367,1736961045726,-500.0,0.00019589,3]
[349072369,1736961045736,-500.0,0.00019589,3]
[349072371,1736961045746,-500.0,0.00019589,3]
[349072373,1736961045757,-500.0,0.00019589,3]
[349072375,1736961045766,-500.0,0.00019589,3]
[349072377,1736961045776,-500.0,0.00019589,3]
[349072379,1736961045788,-500.0,0.00019589,3]
[349072381,1736961045797,-500.0,0.00019589,3]
[349072383,1736961045808,-500.0,0.00019589,3]
[349072384,1736961045818,-500.0,0.00019589,3]
[349072387,1736961045828,-500.0,0.00019589,3]
[349072389,1736961045838,-500.0,0.00019589,3]
[349072391,1736961045849,-500.0,0.00019589,3]
[349072393,1736961045860,-500.0,0.00019589,3]
[349072395,1736961045869,-500.0,0.00019589,3]
[349072397,1736961045879,-500.0,0.00019589,3]
[349072399,1736961045890,-500.0,0.00019589,3]
[349072401,1736961045899,-500.0,0.00019589,3]
[349072410,1736961045983,-500.0,0.00019589,3]
[349072412,1736961045993,-500.0,0.00019589,3]
[349072414,1736961046003,-500.0,0.00019589,3]
[349072416,1736961046014,-500.0,0.00019589,3]
[349072418,1736961046023,-613.56,0.00019589,3]
[349072420,1736961046034,-500.0,0.00019589,3]
[349072422,1736961046044,-6783.72,0.00019589,3]
[349072424,1736961046054,-500.0,0.00019589,3]
[349072426,1736961046064,-500.0,0.00019589,3]
[349072428,1736961046073,-500.0,0.00019589,3]
[349072430,1736961046083,-500.0,0.00019589,3]
[349072432,1736961046093,-500.0,0.00019589,3]
[349072434,1736961046103,-500.0,0.00019589,3]
[349072436,1736961046112,-500.0,0.00019589,3]
[349072438,1736961046122,-500.0,0.00019589,3]
[349072440,1736961046132,-500.0,0.00019589,3]
[349072442,1736961046141,-500.0,0.00019589,3]
[349072444,1736961046151,-500.0,0.00019589,3]
[349072446,1736961046160,-789.48,0.00019589,3]
[349072448,1736961046170,-1028.5,0.00019589,3]
[349072450,1736961046179,-500.0,0.00019589,3]
[349072453,1736961046189,-500.0,0.00019589,3]
[349072456,1736961046199,-580.03,0.00019589,3]
[349072459,1736961046208,-503.98,0.00019589,3]
[349072462,1736961046218,-500.0,0.00019589,3]
[349072464,1736961046228,-599.21,0.00019589,3]
[349072466,1736961046238,-500.0,0.00019589,3]
[349072468,1736961046247,-500.0,0.00019589,3]
[349072470,1736961046256,-500.0,0.00019589,3]
[349072472,1736961046265,-500.0,0.00019589,3]
[349072474,1736961046275,-500.0,0.00019589,3]
[349072476,1736961046286,-500.0,0.00019589,3]
[349072478,1736961046295,-500.0,0.00019589,3]
[349072480,1736961046304,-500.0,0.00019589,3]
[349072482,1736961046313,-11998.11,0.00019589,3]
[349072484,1736961046323,-500.0,0.00019589,3]
[349072486,1736961046335,-1176.13,0.00019589,3]
[349072488,1736961046344,-500.0,0.00019589,3]
[349072490,1736961046353,-509.96,0.00019589,2]
[349072492,1736961046363,-500.0,0.00019589,3]
[349072494,1736961046374,-2098.31,0.00019589,3]
[349072496,1736961046384,-500.0,0.00019589,3]
[349072498,1736961046394,-500.0,0.00019589,3]
[349072500,1736961046409,-500.0,0.00019589,3]
[349072502,1736961046419,-167.263915,0.00019589,3]
[349072503,1736961046428,-551.5,0.00019589,3]
[349072506,1736961046439,-500.0,0.00019589,3]
[349072508,1736961046449,-527.56,0.00019589,3]
[349072510,1736961046459,-500.0,0.00019589,3]
[349072512,1736961046469,-500.0,0.00019589,3]
[349072514,1736961046479,-500.0,0.00019589,3]
[349072516,1736961046489,-1044.28,0.00019589,3]
[349072518,1736961046499,-500.0,0.00019589,3]
[349072520,1736961046509,-1687.9,0.00019589,3]
[349072522,1736961046519,-500.0,0.00019589,3]
[349072524,1736961046529,-500.0,0.00019589,3]
[349072526,1736961046539,-500.0,0.00019589,3]
[349072528,1736961046548,-500.0,0.00019589,3]
[349072530,1736961046558,-500.0,0.00019589,3]
[349072532,1736961046568,-500.0,0.00019589,3]
[349072534,1736961046578,-162.72169129,0.00019671,2]
[349072536,1736961046587,-500.0,0.00019725,3]
[349072538,1736961046597,-3659.83,0.00019725,3]
[349072540,1736961046607,-500.0,0.00019726,3]
[349072542,1736961046616,-500.0,0.00019726,3]
[349072544,1736961046626,-630.72070573,0.00019726,3]
[349072546,1736961046635,-500.0,0.00019726,3]
[349072548,1736961046645,-500.0,0.00019726,3]
[349072550,1736961046655,-500.0,0.00019726,3]
[349072552,1736961046664,-500.0,0.00019726,3]
[349072554,1736961046674,-500.0,0.00019726,3]
[349072556,1736961046685,-500.0,0.00019726,3]
[349072558,1736961046694,-567.83015232,0.00019726,3]
[349072560,1736961046703,-500.0,0.00019726,3]
[349072562,1736961046713,-500.0,0.00019726,3]
[349072564,1736961046723,-500.0,0.00019726,3]
[349072566,1736961046734,-500.0,0.00019726,3]
[349072568,1736961046744,-500.0,0.00019726,3]
[349072570,1736961046754,-500.0,0.00019726,3]
[349072572,1736961046763,-500.0,0.00019726,3]
[349072573,1736961046774,-500.0,0.00019726,3]
[349072574,1736961046785,-6783.72,0.00019726,3]
[349072575,1736961046795,-500.0,0.00019726,3]
[349072576,1736961046807,-586.20990747,0.00019726,3]
[349072578,1736961046817,-500.0,0.00019726,3]
[349072579,1736961046827,-42.32441326,0.00019726,3]
[349072582,1736961046843,-457.67558674,0.00019726,3]
[349072584,1736961046853,-500.0,0.00019726,3]
[349072586,1736961046863,-500.0,0.00019726,3]
[349072588,1736961046873,-500.0,0.00019726,3]
[349072590,1736961046883,-500.0,0.00019726,3]
[349072592,1736961046893,-500.0,0.00019726,3]
[349072594,1736961046903,-500.0,0.00019726,3]
[349072596,1736961046913,-500.0,0.00019726,3]
[349072598,1736961046923,-789.48,0.00019726,3]
[349072600,1736961046933,-967.41644697,0.00019726,3]
[349072603,1736961046944,-61.08355303,0.00019726,3]
[349072605,1736961046954,-455.14648097,0.00019726,3]
[349072607,1736961046965,-44.85351903,0.00019726,3]
[349072609,1736961046975,-500.0,0.00019726,3]
[349072611,1736961046985,-580.03,0.00019726,3]
[349072613,1736961046995,-503.98,0.00019726,3]
[349072615,1736961047006,-500.0,0.00019726,3]
[349072617,1736961047015,-599.21,0.00019726,3]
[349072619,1736961047025,-500.0,0.00019726,3]
[349072621,1736961047036,-175.14,0.00019726,3]
[349072623,1736961047045,-500.0,0.00019726,3]
[349072625,1736961047055,-500.0,0.00019726,3]
[349072627,1736961047065,-500.0,0.00019726,3]
[349072629,1736961047074,-500.0,0.00019726,3]
[349072631,1736961047084,-500.0,0.00019726,3]
[349072633,1736961047094,-2684.55964195,0.00019726,3]
[349076422,1736961090816,160.0,0.00022944,120]
[349077324,1736961451646,160.0,0.00023223,120]
[349077328,1736961508011,7751.14,0.00025,120]
[349077329,1736961523373,5813.35,0.00025,120]
[349077330,1736961531658,5813.35,0.00025,120]
[349077331,1736961545087,2906.68,0.00025,120]
[349077332,1736961558261,2180.01,0.00025,120]
[349077333,1736961572477,3270.01,0.00025,120]
[349077334,1736961605327,3270.0,0.00025,120]
[349077335,1736961690784,160.0,0.00024533,120]
[349077336,1736961743027,150.0,0.00025,120]
[349077337,1736961761588,150.0,0.00025,120]
[349077338,1736961780022,150.0,0.00025,120]
[349077339,1736961798526,150.0,0.00025,120]
[349077340,1736961810796,160.0,0.00024961,120]
[349077341,1736961871269,160.0,0.00024966,120]
[349077342,1736961879339,184.4,0.00025,120]
[349077387,1736962052877,281.677871,0.00013973,2]
[349077389,1736962101922,3051.96189173,0.000125,2]
[349077390,1736962120910,424.73374548,0.0001,7]
[349077391,1736962122416,1000.0,0.00025,120]
[349077393,1736962131652,271.0,0.00025,120]
[349077434,1736962232401,-5000.0,0.0001584,14]
[349077435,1736962232410,-2799.80541261,0.00016,2]
[349077436,1736962232419,-300.0,0.00016845,2]
[349077437,1736962232527,-1198.4663249,0.00017117,2]
[349077438,1736962232537,-192.483756,0.00017404,2]
[349077439,1736962232547,-196.68648642,0.00017674,2]
[349077440,1736962232558,-10000.0,0.00018,2]
[349077441,1736962232568,-24900.0,0.00018221,2]
[349077442,1736962232577,-420.0,0.00018401,2]
[349077443,1736962232587,-10741.95114879,0.00018765,2]
[349077444,1736962232596,-376.44013606,0.000188,2]
[349077445,1736962232606,-1000.0,0.00019,19]
[349077446,1736962232616,-1000.0,0.00019,2]
[349077447,1736962232628,-7874.16673522,0.00019003,2]
[349077448,1736962232652,-2867.78441357,0.00019003,2]
[349077449,1736962232662,-421.84303837,0.00019078,2]
[349077450,1736962232672,-163.82,0.00019078,2]
[349077451,1736962232681,-500.0,0.00019176,2]
[349077452,1736962232691,-169.10574546,0.00019176,2]
[349077453,1736962232703,-500.0,0.00019176,2]
[349077454,1736962232713,-500.0,0.00019176,2]
[349077455,1736962232723,-500.0,0.00019176,2]
[349077456,1736962232732,-500.0,0.00019176,2]
[349077457,1736962232742,-500.0,0.00019176,2]
[349077458,1736962232752,-334.86184925,0.00019176,2]
[349077459,1736962232761,-168.17953326,0.00019176,2]
[349077460,1736962232771,-500.0,0.00019176,2]
[349077461,1736962232783,-500.0,0.00019176,2]
[349077462,1736962232793,-500.0,0.00019176,2]
[349077463,1736962232803,-390.31063621,0.00019176,2]
[349077464,1736962232812,-500.0,0.00019176,2]
[349077465,1736962232822,-500.0,0.00019177,2]
[349077466,1736962232831,-642.3326434,0.00019177,2]
[349077467,1736962232840,-500.0,0.00019178,2]
[349077468,1736962232850,-500.0,0.00019178,2]
[349077469,1736962232859,-455.4110028,0.00019178,2]